Cogmind - Beta 16 @@@ ROGUE MODE // 2025.11.23 @ 01:15:26 Player: roc Result: Destroyed by S-10 Pest with Light Assault Rifle Performance ------------- Evolutions (0) 0 Regions Visited (2) 400 Robots Destroyed (41) 205 Value Destroyed (1031) 1031 Prototype IDs (0) 0 Alien Tech Used (0) 0 Bonus (0) 0 TOTAL SCORE: 1636 Bonus ------- None Cogmind --------- Core Integrity 0/250 Matter 260/300 Energy 200/200 System Corruption 0% Temperature Cool (0) Movement Rolling (160) Ox5 Location -10/Subcaves Parts ------- > --- POWER (1) -------- Subdweller Power Source > --- PROPULSION (2) --- Light Treads Subdweller Monowheel > --- UTILITY (2) ------ Huge Storage Unit Seismic Detector > --- WEAPON (2) ------- Subdweller Shrapnel Launcher Subdweller Shrapnel Launcher > --- INVENTORY (25) --- Subdweller Power Source Subdweller Monowheel Subdweller Monowheel High-capacity Matter Pod (100) Makeshift Light Armor Plating Scrap Shield Hacking Suite Subdweller Machine Gun Hammer SUBCON Basin (Full) Peak State ------------ > --- POWER ------------ Subdweller Power Source > --- PROPULSION ------- Spiked Treads Subdweller Monowheel > --- UTILITY ---------- Huge Storage Unit Makeshift Light Armor Plating > --- WEAPON ----------- Subdweller Machine Gun Subdweller Shrapnel Launcher > --- INVENTORY -------- Subdweller Power Source Subdweller Monowheel Subdweller Monowheel Subdweller Monowheel High-capacity Matter Pod Scrap Shield Hacking Suite Subdweller Shrapnel Launcher Hammer SUBCON Basin [Rating: 34] Favorites ----------- Power Ion Engine Engine Ion Engine Propulsion Light Treads Treads Light Treads Wheel Compact Wheel Utility Huge Storage Unit Device Sensor Array Storage Huge Storage Unit Processor Signal Interpreter Protection Light Armor Plating Weapon Subdweller Machine Gun Energy Gun Medium Laser Ballistic Gun Subdweller Machine Gun Ballistic Cannon Light Cannon Launcher Subdweller Shrapnel Launcher Slashing Weapon Mining Claw Build | -11 -10 -10 ------- Run | Yrd Mat Sub Slots Evolved . | . . . Power . | . . . Propulsion . | . . . Utility . | . . . Weapon . | . . . Parts Attached 42 | 7 15 20 Power 3 | 1 1 1 Engine 3 | 1 1 1 Core . | . . . Reactor . | . . . Propulsion 12 | 2 4 6 Treads 8 | 2 3 3 Leg . | . . . Wheel 4 | . 1 3 Hover . | . . . Flight . | . . . Utility 11 | 1 5 5 Device 4 | . 2 2 Storage 3 | 1 2 . Processor 1 | . . 1 Hackware . | . . . Protection 3 | . 1 2 Artifact . | . . . Weapon 16 | 3 5 8 Energy Gun 5 | 1 1 3 Energy Cannon . | . . . Ballistic Gun 6 | 2 1 3 Ballistic Cannon 1 | . 1 . Launcher 3 | . 1 2 Special Weapon . | . . . Impact Weapon . | . . . Slashing Weapon 1 | . 1 . Piercing Weapon . | . . . Special Melee Weapon . | . . . Unidentified Prototypes . | . . . Parts Lost 3 | . 1 2 Power 1 | . 1 . Propulsion . | . . . Utility 1 | . . 1 Weapon 1 | . . 1 Highest Loss Streak 1 | . 1 1 To Critical Strikes . | . . . Average Backups 16 | 3 14 20 Power 2 | . 1 2 Propulsion 3 | 1 3 4 Utility 6 | . 5 7 Weapon 5 | . 4 5 Tool/Special . | . . . Unused Backups 25 | . 7 18 Power 4 | . . 4 Propulsion 4 | . 2 2 Utility 12 | . 3 9 Weapon 5 | . 2 3 Tool/Special . | . . . Average Slot Usage (%) 99 | . 99 99 Engine 14 | . 14 14 Treads 17 | . 20 14 Wheel 10 | . 7 13 Device 6 | . 3 8 Storage 14 | . 14 14 Protection 7 | . 9 5 Energy Gun 6 | . 11 2 Ballistic Gun 14 | . 11 17 Ballistic Cannon 3 | . 3 3 Launcher 2 | . . 4 Peak Build Rating 34 | 6 10 34 Average Rating 11 | 4 8 15 On Entrance 5 | . 6 9 Avg Prop Armor Cover (%) 11 | . 9 12 Naked Turns . | . . . Heaviest Build 102 | 14 94 102 Greatest Support 40 | 40 40 20 Greatest Overweight (x) 6 | . 5 6 Average Overweight (x) 3 | . 2 4 Largest Inventory Capacity 25 | 8 25 25 Average Capacity 20 | 7 17 25 Most Carried 25 | 6 24 25 Average Carried 18 | 3 14 24 Final Capacity 25 | 8 25 25 Final Carried 25 | 6 24 25 Class Distribution -------------------- 100% | Mutant Dominant Class ---------------- Mutant | -10/Materials Mutant | -10/Subcaves Resources | -11 -10 -10 ----------- Run | Yrd Mat Sub Matter Collected 1718 | 213 651 854 Remotely . | . . . Salvage Created 1181 | 36 818 327 Parts 62 | 5 34 23 Haulers Intercepted 2 | . 2 . Recyclers Shooed 2 | . 2 . Parts Field Recycled . | . . . Retrieved Matter . | . . . Parts Self-Destructed 6 | . . 6 Prevented . | . . . Parts Restored . | . . . Kills | -11 -10 -10 ------- Run | Yrd Mat Sub Combat Hostiles Destroyed 31 | . 19 12 Guns 18 | . 13 5 Cannons 3 | . 2 1 AOE 8 | . 3 5 Classes Destroyed 10 | 1 7 2 Worker 1 | . 1 . Tunneler 2 | 2 . . Hauler 2 | . 2 . Recycler 1 | . 1 . Operator 2 | . 2 . Turret 1 | . . 1 Watcher 1 | . 1 . Swarmer 9 | . 6 3 Grunt 13 | . 13 . Subdweller 9 | . . 9 Best Kill Streak 5 | 1 5 4 Combat Bots Only 4 | . 4 3 Max Kills in Single Turn 4 | 1 2 4 Gunslinging . | . . . Exploded 3 | . 2 3 Melee . | . . . Uniques/NPCs Destroyed . | . . . Combat | -11 -10 -10 -------- Run | Yrd Mat Sub Hostile Shots Fired 136 | . 85 51 Missed 34 | . 19 15 Hits 102 | . 66 36 Projectile 102 | . 66 36 Critical Strikes 1 | . 1 . Damage Taken 1506 | . 764 742 Core 256 | . 90 166 Absorbed by Shields . | . . . Regen/Repaired (Parts) 26 | . 26 . Core Remaining (%) 100 | 100 . . Volleys Fired 128 | 10 75 43 Largest 2 | 2 2 2 Hottest 90 | 70 80 90 Shots Fired 238 | 20 146 72 Gun 205 | 20 129 56 Cannon 23 | . 14 9 Launcher 10 | . 3 7 Special . | . . . Kinetic 129 | 10 75 44 Thermal 93 | 10 67 16 Explosive 3 | . 3 . Electromagnetic 13 | . 1 12 Robot Hit Streak 24 | 5 14 24 Robot Miss Streak 3 | 2 3 3 Penetration Max . | . . . Secondary Targets 2 | . . 2 Max Gunslinging Chain 1 | . . 1 Shots Hit Robots 176 | 15 107 54 Core Hits 67 | 3 41 23 Critical Kills . | . . . Critical Parts Destroyed . | . . . Critical Strikes 11 | 3 8 . Burn 11 | 3 8 . Melee Attacks 8 | . 4 4 Impact . | . . . Slashing 8 | . 4 4 Piercing . | . . . Sneak Attacks 2 | . 2 . Combat Hostiles . | . . . Follow-up Attacks . | . . . Damage Inflicted 3449 | 191 1800 1458 Guns 2192 | 191 1211 790 Cannons 283 | . 156 127 Explosions 839 | . 298 541 Melee 122 | . 122 . Ramming 13 | . 13 . Kinetic 2021 | 104 747 1170 Thermal 863 | 87 620 156 Explosive 298 | . 298 . Electromagnetic 132 | . . 132 Impact . | . . . Slashing 122 | . 122 . Piercing . | . . . Highest Corruption . | . . . Average Corruption . | . . . Corruption Purged . | . . . Corruption Blocked . | . . . Overload Shots . | . . . Overflow Damage 30 | . 30 . Projectiles . | . . . Explosions 5 | . 5 . Melee 25 | . 25 . Knockbacks 3 | . 3 . Impact . | . . . Kinetic 3 | . 3 . Secondary . | . . . Self-Inflicted Damage . | . . . Shots . | . . . Rammed 4 | . 4 . Targets Rammed 4 | . 4 . Kicked . | . . . Crushed . | . . . Highest Temperature 198 | 36 198 1 Average Temperature 46 | 14 55 1 Received Heat Transfer 528 | . 399 129 Siege Activations . | . . . Martial Activations . | . . . Shielding Activations . | . . . Robots Disrupted . | . . . Combat Hostiles . | . . . Robots Corrupted 1 | . . 1 Combat Hostiles 1 | . . 1 Parts Fried 2 | . . 2 Impact Corruptions . | . . . Robots Melted 1 | . 1 . Combat Hostiles 1 | . 1 . Parts Melted 8 | 1 7 . Heat Transferred 3123 | 481 2442 200 Parts Sabotaged . | . . . Parts Stolen . | . . . Parts Stripped . | . . . Power Chain Reactions . | . . . Alert | -11 -10 -10 ------- Run | Yrd Mat Sub Maximum Alert Level 1 | . 1 . Low Security (%) 67 | 100 65 . Level 1 32 | . 34 . Level 2 . | . . . Level 3 . | . . . Level 4 . | . . . Level 5 . | . . . High Security . | . . . Max Security . | . . . Peak Influence 252 | 5 252 . Initial . | . . . Average 125 | . 135 . Influence Increases 810 | 10 705 95 Destroy 0b10 Robot/C 460 | . 380 80 Destroy 0b10 Robot/NC 45 | 10 35 . Destroy Leader 96 | . 96 . Successful Hack 55 | . 55 . Select Force Hacks 60 | . 60 . Disable Machine 15 | . 15 . Destroy Structure 19 | . 19 . Partial Spotted 15 | . 15 . Lose Combat Pursuer 45 | . 30 15 Influence Decreases 717 | 10 504 203 Entered New Map 97 | . . 97 Time Decay 610 | 10 494 106 Lost Part 10 | . 10 . Squads Dispatched 5 | . 5 . Investigation 3 | . 3 . Extermination . | . . . Reinforcement 2 | . 2 . Assault . | . . . Garrison . | . . . Intercept . | . . . Searches Triggered . | . . . Construction Impeded . | . . . Haulers Reinforced . | . . . Active Scanning Responses . | . . . Cargo Convoy Interrupts . | . . . Stealth | -11 -10 -10 --------- Run | Yrd Mat Sub Distress Signals 1 | . 1 . Communications Jammed . | . . . Distress Signals . | . . . Times Spotted 50 | . 36 14 Peak Tracking Total 6 | . 5 6 Tactical Retreats 3 | . 2 1 Traps | -11 -10 -10 ------- Run | Yrd Mat Sub Traps Triggered 1 | . 1 . Indirectly . | . . . Trap Hack Attempts . | . . . Triggered . | . . . Disarmed . | . . . Reprogrammed . | . . . Reused . | . . . Traps Extracted . | . . . Installed . | . . . Triggered . | . . . Machines | -11 -10 -10 ---------- Run | Yrd Mat Sub Machines Disabled 5 | . 1 4 Max in Single Turn 4 | . 1 4 Machines Repaired . | . . . Machines Dismantled . | . . . Machines Sabotaged . | . . . Overloaded Fab Kills . | . . . Hacking | -11 -10 -10 --------- Run | Yrd Mat Sub Machines Accessed 12 | . 10 2 Terminals 7 | . 7 . Fabricators . | . . . Repair Stations 1 | . 1 . Recycling Units 2 | . 2 . Scanalyzers . | . . . Garrison Access . | . . . Total Hacks 28 | . 26 2 Successful 17 | . 15 2 Failed 11 | . 11 . Catastrophic 2 | . 2 . Database Lockouts . | . . . Manual 11 | . 11 . Terminals 20 | . 20 . Fabricators . | . . . Repair Stations 2 | . 2 . Recycling Units 4 | . 4 . Scanalyzers . | . . . Garrison Access . | . . . Terminal Hacks 10 | . 8 2 Part Schematic 2 | . 2 . Robot Analysis 1 | . 1 . Open Door 1 | . . 1 Locate Traps 2 | . 2 . Hauler Manifests 1 | . 1 . Zone Layout 2 | . 2 . Release Object 1 | . . 1 Fabricator Hacks . | . . . Repair Station Hacks 2 | . 2 . Scan Component 1 | . 1 . Repair 1 | . 1 . Recycling Unit Hacks 2 | . 2 . Report Inventory 2 | . 2 . Scanalyzer . | . . . Garrison Access Hacks . | . . . Unauthorized Hacks 3 | . 3 . Terminals 1 | . 1 . Assimilate 1 | . 1 . Fabricators . | . . . Repair Stations . | . . . Recycling Units 2 | . 2 . Tunnel 2 | . 2 . Scanalyzers . | . . . Garrison Access . | . . . Data Cores Recovered . | . . . Used . | . . . Hacking Detections 7 | . 7 . Full Trace Events 1 | . 1 . Feedback Events . | . . . Feedback Blocked . | . . . Robot Schematics Acquired . | . . . Robots Built . | . . . Authchips . | . . . Time . | . . . Total Robot Build Rating . | . . . Part Schematics Acquired 2 | . 2 . Parts Built . | . . . Authchips . | . . . Time . | . . . Total Part Build Rating . | . . . Part Studies Acquired . | . . . Parts Repaired 1 | . 1 . Time 13 | . 13 . Parts Recycled . | . . . Recycled Matter . | . . . Retrieved Matter . | . . . Retrieved Components . | . . . Parts Scanalyzed . | . . . Part Schematics Acquired . | . . . Parts Damaged . | . . . Bothacking | -11 -10 -10 ------------ Run | Yrd Mat Sub Used RIF Installer . | . . . Robots Hacked . | . . . Non-combat . | . . . Combat . | . . . Robot Hacks Applied . | . . . Relay Couplers Released . | . . . Fabnet Peak Effective % . | . . . Robots Rewired . | . . . Allies Hacked . | . . . Hacks Repelled . | . . . Allies | -11 -10 -10 -------- Run | Yrd Mat Sub Total Allies . | . . . Largest Group . | . . . Highest-Rated Group . | . . . Highest-Rated Ally . | . . . Total Orders . | . . . Ally Attacks . | . . . Total Damage . | . . . Kills . | . . . Allies Corrupted . | . . . Allies Melted . | . . . Intel | -11 -10 -10 ------- Run | Yrd Mat Sub Active Infowar (turns) 1915 | . 390 1525 Sensors 1166 | . . 1166 Seismic 749 | . 390 359 Robot Analysis Total 1 | . 1 . Derelict Logs Recovered 1 | . . 1 Drone Launches . | . . . Drone Recoveries . | . . . Exploration | -11 -10 -10 ------------- Run | Yrd Mat Sub Turns Passed 5338 | 209 2568 2561 Spaces Moved 2682 | 117 1234 1331 Core 21 | 21 . . Treads 562 | 96 466 . Legs . | . . . Wheels 2099 | . 768 1331 Hover . | . . . Flight . | . . . Fastest Speed 50 | 50 145 150 Average Speed 168 | 140 169 169 Slowest Speed 240 | 160 240 190 Overloaded Moves . | . . . Propulsion Burnouts . | . . . Robots Hopped . | . . . Potential Cave-ins . | . . . Cave-ins Triggered . | . . . Exploration Rate (%) 57 | 6 99 67 Regions Visited 2 Branch Regions 1 Pre-discovered Areas 2 | . 2 . Known Exits Taken . | . . . Unknown Exits Taken 2 | 1 1 . Scrap Searched 3 | . . 3 Spaces Dug . | . . . Terrain Destroyed 117 | . 15 102 Melee . | . . . Projectile . | . . . AOE 117 | . 15 102 Terrain Rammed . | . . . Walls Destroyed . | . . . Machines Disabled . | . . . Actions | -11 -10 -10 --------- Run | Yrd Mat Sub Total 3255 | 139 1557 1559 Wait 259 | . 172 87 Move 2680 | 116 1233 1331 Hop . | . . . Pick Up 55 | 6 29 20 Fast Attach 13 | 6 4 3 Attach 7 | . 3 4 Detach 2 | . 2 . Swap 44 | 1 14 29 Drop 55 | . 17 38 Fire 128 | 10 75 43 Melee 8 | . 4 4 Ram . | . . . Kick . | . . . Crush 4 | . 4 . Escape Stasis . | . . . Rewire . | . . . Trap . | . . . Miscellaneous . | . . . Route ------- -11/Scrapyard -10/Materials (discovered 5 exits: [*Mat x3] / [*Min] / *Sub) -10/Subcaves (discovered 2 exits: *Mat x2) History --------- Turn | Location | Event 2 | -11/Scrapyard | Met Revision 17 7 | -11/Scrapyard | Discovered new exit (range 15) 210 | -11/Scrapyard | Entered Materials 310 | -10/Materials | Build established: Mutant 984 | -10/Materials | Discovered new exit (range 6) 1228 | -10/Materials | Discovered new exit (range 15) 1477 | -10/Materials | Discovered new exit (range 16) 2200 | -10/Materials | Discovered new exit (range 16) 2228 | -10/Materials | Repaired Lgt. Armor Plating 2762 | -10/Materials | Discovered new exit (range 8) 2778 | -10/Materials | Entered Subcaves 2788 | -10/Subcaves | Shifting Twisted Machinery released Sub. Shrapnel Launcher 2793 | -10/Subcaves | Shifting Twisted Machinery released Shrapnel Trap 3687 | -10/Subcaves | Learned Materials interactive machine intel 3813 | -10/Subcaves | Discovered new exit (range 8) 3906 | -10/Subcaves | Identified exit to Materials 4208 | -10/Subcaves | Disturbed a concealed Subdweller 4210 | -10/Subcaves | Core integrity fell below 50% 4444 | -10/Subcaves | Discovered exit to Materials (range 11) 4668 | -10/Subcaves | Core integrity fell below 20% 4741 | -10/Subcaves | Shifting Twisted Machinery released Piercing Trap 4887 | -10/Subcaves | Found SUBCON Basin 5339 | -10/Subcaves | Destroyed by S-10 Pest with Light Assault Rifle Last Messages --------------- 04864_ Dropped Sensor Array. 04864_ Dropped Sub. Optics. 04866_ Dropped Lgt. Treads. 04868_ Dropped Corrupted Sub. Power Source. 04874_ Dropped Hcp. Storage Unit. 04877_ Dropped Mining Claw. 04887_ Acquired SUBCON Basin. 04939_ Sub. Monowheel shoots sparks and powers down. 04945_ Dropped Corrupted Sub. Monowheel. 04978_ Acquired Seismic Detector. 04981_ Subatomizers dissect the Sub. Optics. 04991_ Dropped Spk. Treads. 04996_ Acquired Lgt. Treads. 05020_ Dropped Hcp. Matter Pod. 05021_ Extracted 155 matter. 05021_ Acquired Hcp. Matter Pod. 05182_ Acquired 14 matter. 05184_ Acquired 51 matter. 05337_ S-10 Pest destroyed. Map ----- +----------------------------------------------------+ | ?????????????????????????????????????????????????? | | ?????????????????????????????????????????????????? | | ?????????????????????????????????????????????????? | | ?????????????????????????????????????????????????? | | ?????????????????????????????????????????????????? | | ?????????????????????????????????????????????????? | | ?????????????????????????????????????????????????? | | ?????????????????????????????????????????????????? | | ?????????????????????????????????????????????????? | | ?????????????????????????????????????????????????? | | ?????????????????????????????????????????????????? | | ?????????????????????????????????????????????????? | | ?????????????????????????????????????????????????? | | ??????????????????????????????? ?????????????????? | | ?????????????????????????????? #?????????????????? | | ?????????????????????????????? ##????????????????? | | ????????????????????????????? ##???????????????? | | ????????????????????????????? #????? ?????????? | | ??????????????????????###???? #??; ?????????? | | ??????????????????????# ##?# ##;; ?????????? | | ????????????????????### ##; =s ????????? | | ????????????????????# ;; [ ?????????? | | ?????????????????????# % = ???????????? | | ?????????????????????# ;;#??????????????? | | ?????????????????##### ; #??????????????? | | ????????????# @ ; #??????????????? | | ????????????# ## ;; #??????????????? | | ????????????# ### ;# ##?????###??????? | | ????????????## ?# ###???????## ####??? | | ?????????????#### ?## ##??####???# ##?? | | ????????????????# ?## #??## ##??## ### | | ???????????????# ??# ##?# #???### ^ | | ?????????????? ?## ### #?###?## | | ????????????? ??# ## ### ##?# | | ????????????? ???## ### ##### | | ?????????????? ?????#### # # ## ## | | ?????????????? ????????## | | ???????????????? ??????????### ### | | ?????????????????????????????## ## #### | | ?????????????????????????????## ###### | | ?????????????????????????????# #???# & | | ?????????????????????????????#####???# ## | | ?????????????????????????????????????# ### | | ?????????????????????????????????????####### | | ??????????????????????????????????????????# | | ??????????????????????????????????????????# ## | | ?????????????????????????????#####??#?????#### ## | | ?????????????????????????????# ## ???????## #? | | ?????????????????????????????# ???????# ##? | | ?????????????????????????????# #???????# ### | +----------------------------------------------------+ Best States ------------- Heat Dissipation 39 Energy Generation 10 Energy Capacity 250 Matter Stores 300 Matter Capacity 300 Sight Range 16 Robot Scan Range 14 Terrain Scan Density 10 Armor Coverage 150 Evasion (%) 50 Recoil Reduction 2 Item Schematics ----------------- Huge Storage Unit | -10/Materials | Hacked Hcp. Storage Unit | -10/Materials | Hacked Robot Schematics ------------------ None Fabricated ------------ Nothing Repaired ---------- Lgt. Armor Plating | 71% | -10/Materials Studied --------- None Alien Tech Used ----------------- None Achievements -------------- DATA ERROR: Steam Global Achievement% For Emergencies Only Organ Harvest You Again Challenges ------------ None Game ------ Seed ShadeFocalRail Manual? 0 Play Time 00:31:42 Cumulative 494.3 hours Start 2025.11.15 @ 19:46:01 End 2025.11.23 @ 01:15:26 Sessions 6 Manual Loads 0 Difficulty Rogue Special Mode None Game No. 402 Rogue 394 Adventurer 0 Explorer 8 Win Type - Total 8 Types 6/0/2/0/0/0/0/0/0/0 Lore% 83 Gallery% 75 Achievement% 39 Wizard Run 0 Options --------- Layout 1 ASCII 0 Keyboard 1 Movement Vi Keybinds 0 Fullscreen 1 Font 24/Smallcaps Map View 50x35 Zoom Use 0% Tactical HUD 1 Map Filters NONE Filters NONE Steam 1 RUN: 03b3a21a-843d-41df-b868-7905923791b7